{"text_format":"3","workbook":"xlsx","n_sheets":4,"sheets":["Marcos","Mapa de Objetivos","Informações","Dados do gráfico"],"not_rendered":{"charts":1,"defined_names":2},"read":"whole","date_system":"1900"}

{"sheet":"Marcos","index":0,"n_rows":27,"n_cols":5,"rows_kept":27}
["Crie um Mapa de Objetivos ao introduzir marcos e atividades importantes nesta folha de cálculo.\nO título desta folha de cálculo está na célula C1. \nAs informações sobre como utilizar esta folha de cálculo, incluindo instruções para leitores de ecrã, estão na folha de cálculo Informações.\nContinue a navegar para baixo na coluna A para obter mais instruções.",null,"Marcos"]
["Os cabeçalhos da tabela estão nas células C2 a E2. Utilize as opções Ordenar e Filtrar para ordenar ou localizar entradas específicas.\nIntroduza Marcos com datas e defina uma posição para a criação do gráfico do marco, na tabela que começa na célula C3.\nA coluna B foi ocultada. O gráfico é gerado a partir destes dados com uma barra de deslocamento para ver partes da linha cronológica. A coluna B ajuda a determinar quais os Marcos para os quais pretende criar o gráfico quando a barra de deslocamento é incrementada. \nAviso: Eliminar ou modificar os conteúdos da coluna B pode afetar a integridade dos gráficos incorporados neste livro.","N.º","Posição","Data","Marco"]
["Introduza a Posição para a representação gráfica da data e marco na célula C1. Introduza um número positivo entre 1 e 3 para representar graficamente o marco acima da linha cronológica. Introduza um número negativo entre 1 e 3 para representar graficamente o marco abaixo da linha cronológica.\nIntroduza a Data e Marco ou atividade na coluna D e E dentro da tabela.\nRepita este padrão para cada nova linha na tabela à direita.\nOs dados de exemplo são fornecidos nas linhas 3 a 26. Modifique ou elimine o conteúdo de exemplo para criar o seu próprio mapa de objetivos.\nContinue para a célula A27 para obter a instrução seguinte.",{"$f":"ROW($A1)","v":1},1,{"$f":"TODAY()","v":"2018-06-29"},"Início"]
[null,{"$f":"ROW($A2)","v":2},-2,{"$f":"D3+10","v":"2018-07-09"},"Análise do Problema\natividade 1"]
[null,3,1,{"$f":"D4+20","v":"2018-07-29"},"Desenvolver Atividade Comercial\natividade 1\natividade 2"]
[null,4,-1,{"$f":"D5+30","v":"2018-08-28"},"Rever Apresentação"]
[null,5,{"v":-0.5,"d":"-1"},{"$f":"D6+40","v":"2018-10-07"},"Reunião de Início (Executivos)\natividade 1\natividade 2"]
[null,6,2,{"$f":"D7+50","v":"2018-11-26"},"Alinhamento Executivo\natividade 1\natividade 2\natividade 3"]
[null,7,{"v":0.5,"d":"1"},{"$f":"D8+60","v":"2019-01-25"},"Aquisição Parcial do Interveniente"]
[null,8,-1,{"$f":"D9+70","v":"2019-04-05"},"Seleção de Recursos"]
[null,9,{"v":0.5,"d":"1"},{"$f":"D10+80","v":"2019-06-24"},"Criação da Equipa\natividade 1 "]
[null,10,-2,{"$f":"D11+90","v":"2019-09-22"},"Reunião de Início (Equipa)\natividade 1 \natividade 2\natividade 3\natividade 4"]
[null,11,3,{"$f":"D12+100","v":"2019-12-31"},"Iniciar Recolha de Dados"]
[null,12,-1,{"$f":"D13+90","v":"2020-03-30"},"Análise de Dados"]
[null,13,1,{"$f":"D14+80","v":"2020-06-18"},"Estrutura"]
[null,14,1,{"$f":"D15+70","v":"2020-08-27"},"Validação do Conceito"]
[null,15,-3,{"$f":"D16+60","v":"2020-10-26"},"Teste e Análise"]
[null,16,-2,{"$f":"D17+50","v":"2020-12-15"},"Reestruturação"]
[null,17,2,{"$f":"D18+40","v":"2021-01-24"},"Novo Desenvolvimento"]
[null,18,-1,{"$f":"D19+30","v":"2021-02-23"},"Teste e Análise"]
[null,19,1,{"$f":"D20+20","v":"2021-03-15"},"Reestruturação"]
[null,20,-3,{"$f":"D21+10","v":"2021-03-25"},"Novo Desenvolvimento"]
[null,21,2,{"$f":"D22+20","v":"2021-04-14"},"Teste Final"]
[null,22,1,{"$f":"D23+30","v":"2021-05-14"},"Teste Beta"]
[null,23,-3,{"$f":"D24+40","v":"2021-06-23"},"Revisão"]
[null,24,-2,{"$f":"D25+50","v":"2021-08-12"},"Lançamento para Marketing"]
["Para adicionar mais linhas na tabela Marcos do Mapa de Objetivos, insira uma nova linha acima desta.\nNão existem mais instruções nesta folha de cálculo.",null,"Para adicionar mais marcos, insira novas linhas acima desta."]

{"sheet":"Mapa de Objetivos","index":1,"n_rows":3,"n_cols":4,"rows_kept":3}
["Um gráfico que mostra os marcos da folha de cálculo Marcos está nesta folha de cálculo. \nOs anos são indicados nas células B2, C2 e D2 e têm o estilo Cabeçalho 3 aplicado.\n10 marcos são representados graficamente de cada vez. \nUtilize a barra de deslocamento nas células B4 a D4 para percorrer o mapa de objetivos.\nOs anos da linha cronológica estão nas células B3 a D3.\nNão existem mais instruções nesta folha de cálculo."]
[]
[null,{"$f":"'Dados do gráfico'!B20","v":2018},{"$f":"'Dados do gráfico'!B21","v":""},{"$f":"'Dados do gráfico'!B22","v":2019}]

{"sheet":"Informações","index":2,"n_rows":5,"n_cols":1,"rows_kept":5}
["Informações sobre este livro"]
["Guia para leitores de ecrã"]
["Existem quatro folhas de cálculo neste livro. \n\nMarcos\nMapa de Objetivos\nInformações\nDados do Gráfico (oculto)\n\nAs instruções de cada folha de cálculo começam a partir da célula A1 de cada folha de cálculo. Estão escritas com texto oculto. Cada passo fornece orientação sobre as informações nessa linha. Cada passo subsequente continua na célula A2, A3 e assim sucessivamente, salvo indicação em contrário. Por exemplo, o texto da instrução pode indicar \"continue para a célula A6\" para o passo seguinte. \n\nO texto oculto não será impresso.\n\nPara remover estas instruções de uma folha de cálculo, elimine a coluna A.\n"]
["Este mapa de objetivos utiliza posições para colocar os marcos e atividades no gráfico. As posições podem ser utilizadas para adicionar importância a um marco ou atividade. Ajuste os valores de acordo com a sua preferência de importância. Por exemplo, o marco/atividade 3 poderá ser mais importante do que o marco/atividade 2. Para o indicar no gráfico, coloque o valor de Posição do marco/atividade 3 superior ao valor do marco/atividade 2.  \n"]
["Esta é a última instrução nesta folha de cálculo."]

{"sheet":"Dados do gráfico","index":3,"n_rows":26,"n_cols":4,"rows_kept":26,"hidden":true}
["Os dados para criar os gráficos dinâmicos estão nesta folha de cálculo. Não elimine esta folha de cálculo!\nEliminar esta folha de cálculo poderá comprometer a funcionalidade dinâmica do livro.","Não elimine esta folha de cálculo!"]
["O título para a tabela está na célula B2.","Conteúdo do Gráfico Dinâmico"]
["Os cabeçalhos da tabela estão nas células B3 a D3. \nEsta tabela é atualizada automaticamente com base nos conteúdos introduzidos na folha de cálculo Marcos.\nAviso: Modificar ou eliminar conteúdos nesta tabela poderá comprometer a funcionalidade de atualização dinâmica do gráfico Mapa de Objetivos na folha de cálculo Mapa de Objetivos.\nAvance para a célula A15 para obter a instrução seguinte.","Data","Eventos","Posição"]
[null,{"$f":"IFERROR(IF(LEN(Marcos!D3)=0,\"\",INDEX(MarcosDoMapaDeObjetivos[],Marcos!$B3+$B$17,3)),\"\")","v":"2018-06-29"},{"$f":"IFERROR(IF(LEN(Marcos!E3)=0,\"\",INDEX(MarcosDoMapaDeObjetivos[],Marcos!$B3+$B$17,4)),\"\")","v":"Início"},{"$f":"IFERROR(INDEX(MarcosDoMapaDeObjetivos[],Marcos!$B3+$B$17,2),\"\")","v":1}]
[null,{"$f":"IFERROR(IF(LEN(Marcos!D4)=0,\"\",INDEX(MarcosDoMapaDeObjetivos[],Marcos!$B4+$B$17,3)),\"\")","v":"2018-07-09"},{"$f":"IFERROR(IF(LEN(Marcos!E4)=0,\"\",INDEX(MarcosDoMapaDeObjetivos[],Marcos!$B4+$B$17,4)),\"\")","v":"Análise do Problema\natividade 1"},{"$f":"IFERROR(INDEX(MarcosDoMapaDeObjetivos[],Marcos!$B4+$B$17,2),\"\")","v":-2}]
[null,{"$f":"IFERROR(IF(LEN(Marcos!D5)=0,\"\",INDEX(MarcosDoMapaDeObjetivos[],Marcos!$B5+$B$17,3)),\"\")","v":"2018-07-29"},{"$f":"IFERROR(IF(LEN(Marcos!E5)=0,\"\",INDEX(MarcosDoMapaDeObjetivos[],Marcos!$B5+$B$17,4)),\"\")","v":"Desenvolver Atividade Comercial\natividade 1\natividade 2"},{"$f":"IFERROR(INDEX(MarcosDoMapaDeObjetivos[],Marcos!$B5+$B$17,2),\"\")","v":1}]
[null,{"$f":"IFERROR(IF(LEN(Marcos!D6)=0,\"\",INDEX(MarcosDoMapaDeObjetivos[],Marcos!$B6+$B$17,3)),\"\")","v":"2018-08-28"},{"$f":"IFERROR(IF(LEN(Marcos!E6)=0,\"\",INDEX(MarcosDoMapaDeObjetivos[],Marcos!$B6+$B$17,4)),\"\")","v":"Rever Apresentação"},{"$f":"IFERROR(INDEX(MarcosDoMapaDeObjetivos[],Marcos!$B6+$B$17,2),\"\")","v":-1}]
[null,{"$f":"IFERROR(IF(LEN(Marcos!D7)=0,\"\",INDEX(MarcosDoMapaDeObjetivos[],Marcos!$B7+$B$17,3)),\"\")","v":"2018-10-07"},{"$f":"IFERROR(IF(LEN(Marcos!E7)=0,\"\",INDEX(MarcosDoMapaDeObjetivos[],Marcos!$B7+$B$17,4)),\"\")","v":"Reunião de Início (Executivos)\natividade 1\natividade 2"},{"$f":"IFERROR(INDEX(MarcosDoMapaDeObjetivos[],Marcos!$B7+$B$17,2),\"\")","v":-0.5}]
[null,{"$f":"IFERROR(IF(LEN(Marcos!D8)=0,\"\",INDEX(MarcosDoMapaDeObjetivos[],Marcos!$B8+$B$17,3)),\"\")","v":"2018-11-26"},{"$f":"IFERROR(IF(LEN(Marcos!E8)=0,\"\",INDEX(MarcosDoMapaDeObjetivos[],Marcos!$B8+$B$17,4)),\"\")","v":"Alinhamento Executivo\natividade 1\natividade 2\natividade 3"},{"$f":"IFERROR(INDEX(MarcosDoMapaDeObjetivos[],Marcos!$B8+$B$17,2),\"\")","v":2}]
[null,{"$f":"IFERROR(IF(LEN(Marcos!D9)=0,\"\",INDEX(MarcosDoMapaDeObjetivos[],Marcos!$B9+$B$17,3)),\"\")","v":"2019-01-25"},{"$f":"IFERROR(IF(LEN(Marcos!E9)=0,\"\",INDEX(MarcosDoMapaDeObjetivos[],Marcos!$B9+$B$17,4)),\"\")","v":"Aquisição Parcial do Interveniente"},{"$f":"IFERROR(INDEX(MarcosDoMapaDeObjetivos[],Marcos!$B9+$B$17,2),\"\")","v":0.5}]
[null,{"$f":"IFERROR(IF(LEN(Marcos!D10)=0,\"\",INDEX(MarcosDoMapaDeObjetivos[],Marcos!$B10+$B$17,3)),\"\")","v":"2019-04-05"},{"$f":"IFERROR(IF(LEN(Marcos!E10)=0,\"\",INDEX(MarcosDoMapaDeObjetivos[],Marcos!$B10+$B$17,4)),\"\")","v":"Seleção de Recursos"},{"$f":"IFERROR(INDEX(MarcosDoMapaDeObjetivos[],Marcos!$B10+$B$17,2),\"\")","v":-1}]
[null,{"$f":"IFERROR(IF(LEN(Marcos!D11)=0,\"\",INDEX(MarcosDoMapaDeObjetivos[],Marcos!$B11+$B$17,3)),\"\")","v":"2019-06-24"},{"$f":"IFERROR(IF(LEN(Marcos!E11)=0,\"\",INDEX(MarcosDoMapaDeObjetivos[],Marcos!$B11+$B$17,4)),\"\")","v":"Criação da Equipa\natividade 1 "},{"$f":"IFERROR(INDEX(MarcosDoMapaDeObjetivos[],Marcos!$B11+$B$17,2),\"\")","v":0.5}]
[null,{"$f":"IFERROR(IF(LEN(Marcos!D12)=0,\"\",INDEX(MarcosDoMapaDeObjetivos[],Marcos!$B12+$B$17,3)),\"\")","v":"2019-09-22"},{"$f":"IFERROR(IF(LEN(Marcos!E12)=0,\"\",INDEX(MarcosDoMapaDeObjetivos[],Marcos!$B12+$B$17,4)),\"\")","v":"Reunião de Início (Equipa)\natividade 1 \natividade 2\natividade 3\natividade 4"},{"$f":"IFERROR(INDEX(MarcosDoMapaDeObjetivos[],Marcos!$B12+$B$17,2),\"\")","v":-2}]
[]
["O deslocamento no mapa de objetivos é feito com a ajuda de um valor incremental. O título para esta funcionalidade está na célula B15.\nUma tabela com um cabeçalho e um valor único está nas células B16 e B17.\nContinue para a célula A19 para obter a instrução seguinte.","Funcionalidade de deslocamento"]
[null,"Incremento de Linha"]
[null,0]
[]
["O gráfico Mapa de Objetivos desenha os anos para a linha cronológica. Para o fazer, os anos têm de ser obtidos a partir da Lista de Marcos. \nO título para esta secção é \"Ano\" na célula B19. \nOs valores de ano são gerados automaticamente nas células C20 a C22.\nAviso: Eliminar ou modificar estes anos poderá alterar a precisão da representação gráfica do gráfico Mapa de Objetivos.\nContinue para a célula A24 para obter a instrução seguinte.","Ano"]
[null,{"$f":"IFERROR(YEAR(B4),\"\")","v":2018},"<-- ano da posição inicial do mapa de objetivos"]
[null,{"$f":"IFERROR(IF(YEAR($B$9)=$B$20,\"\",YEAR($B$9)),\"\")","v":""},"<-- ano da posição intermédia do mapa de objetivos. Este campo poderá estar em branco se o ano for o mesmo da posição inicial do mapa de objetivos"]
[null,{"$f":"IFERROR(IF(YEAR($B$13)=$B$20,\"\",YEAR($B$13)),\"\")","v":2019},"<-- ano da última posição do mapa de objetivos. Este campo poderá estar em branco se o ano for o mesmo da posição inicial do mapa de objetivos"]
[]
["Os marcadores de anel no gráfico Mapa de Objetivos contêm datas do conteúdo do gráfico dinâmico nesta folha de cálculo. As datas são Primeira data na célula C24, Data intermédia na célula C25 e Última data na célula C26.\nNão existem mais instruções nesta folha de cálculo.","Primeira data",{"$f":"B4","v":"2018-06-29"}]
[null,"Data intermédia",{"$f":"B9","v":"2018-11-26"}]
[null,"Última data",{"$f":"B13","v":"2019-09-22"}]